{"text_format":"1","workbook":"xlsx","n_sheets":8,"sheets":["Paramètres","Budget - organisme 1","Budget - organisme 2","Budget - organisme 3","Budget - organisme 4","Budget - organisme 5","Budget - IRSST","Budget global"],"not_rendered":{"charts":0,"images":0,"macros":1,"external_links":0,"defined_names":24,"comments":5,"pivot_tables":0},"unopened":[],"bounds":{"document_bytes":16777216,"sheet_cells":100000,"rows_first":2000,"rows_last":500,"rows_between":2000,"halvings":0,"cell_chars":16384,"cell_head_chars":4096},"cells_cut":0,"cells_raw":0,"read":"whole","date_system":"1900"}

{"sheet":"Paramètres","index":0,"n_rows":0,"n_cols":0,"rows_kept":0,"cut":false,"hidden":false,"merged":[]}

{"sheet":"Budget - organisme 1","index":1,"n_rows":80,"n_cols":17,"rows_kept":80,"cut":false,"hidden":false,"merged":[[0,6,0,7],[0,8,0,10],[1,6,1,7],[1,8,1,10],[14,8,14,9],[15,8,15,9],[16,8,16,9],[17,8,17,9],[2,6,2,8],[3,6,3,10],[4,6,4,10],[44,0,44,3],[47,2,47,3],[58,2,58,3],[52,0,52,2],[64,2,64,3],[45,0,45,3],[68,6,68,9],[52,6,52,8],[17,2,17,3],[18,2,18,3],[45,6,45,9],[46,6,46,9],[47,8,47,9],[23,8,23,9],[18,8,18,9],[19,8,19,9],[22,8,22,9],[27,6,27,9],[20,8,20,9],[42,0,42,3],[46,0,46,3],[19,2,19,3],[26,6,26,9],[43,0,43,3],[75,2,75,3],[55,0,55,3],[61,0,61,3],[72,0,72,3],[70,0,70,3],[56,0,56,3],[62,0,62,3],[69,0,69,3],[71,0,71,3],[74,0,74,3],[57,0,57,3],[73,0,73,3],[63,0,63,3],[68,0,68,3],[0,0,0,1],[3,0,3,4],[4,0,4,4],[2,0,2,2],[34,0,34,3],[28,0,28,3],[29,0,29,3],[35,0,35,3],[39,2,39,3],[1,2,1,4],[0,2,0,4],[14,2,14,3],[15,2,15,3],[16,2,16,3],[1,0,1,1],[20,2,20,3],[23,2,23,3],[31,2,31,3],[27,0,27,3],[22,2,22,3],[30,0,30,3],[26,0,26,3],[36,0,36,3],[38,0,38,3],[75,14,75,15],[72,12,72,15],[0,14,0,16],[1,12,1,13],[1,14,1,16],[3,12,3,16],[70,6,70,9],[72,6,72,9],[75,8,75,9],[0,12,0,13],[4,12,4,16],[23,14,23,15],[26,12,26,15],[27,12,27,15],[28,12,28,15],[29,12,29,15],[31,14,31,15],[61,6,61,9],[64,8,64,9],[38,6,38,9],[39,8,39,9],[42,6,42,9],[56,6,56,9],[31,8,31,9],[55,6,55,9],[58,8,58,9],[43,6,43,9],[22,14,22,15],[56,12,56,15],[62,12,62,15],[69,12,69,15],[34,12,34,15],[35,12,35,15],[36,12,36,15],[38,12,38,15],[62,6,62,9],[57,6,57,9],[57,12,57,15],[63,6,63,9],[63,12,63,15],[34,6,34,9],[35,6,35,9],[36,6,36,9],[28,6,28,9],[29,6,29,9],[44,6,44,9],[45,12,45,15],[46,12,46,15],[19,14,19,15],[71,12,71,15],[61,12,61,15],[47,14,47,15],[52,12,52,14],[39,14,39,15],[64,14,64,15],[68,12,68,15],[70,12,70,15],[55,12,55,15],[58,14,58,15],[42,12,42,15],[43,12,43,15],[44,12,44,15],[25,0,25,1],[25,6,25,7],[25,12,25,13],[2,12,2,14],[20,14,20,15],[37,0,37,3],[37,6,37,9],[37,12,37,15],[74,6,74,9],[74,12,74,15],[21,2,21,3],[21,8,21,9],[21,14,21,15],[30,6,30,9],[30,12,30,15],[73,6,73,9],[73,12,73,15],[69,6,69,9],[71,6,71,9],[14,14,14,15],[15,14,15,15],[16,14,16,15],[17,14,17,15],[18,14,18,15]]}
["No de dossier : ",null,null,null,null,null,"No de dossier : ",null,{"$f":"C1","v":0},null,null,null,"No de dossier : ",null,{"$f":"C1","v":0}]
["Organisme qui recevra la subvention : ",null,null,null,null,null,"Organisme qui recevra la subvention : ",null,{"$f":"C2","v":0},null,null,null,"Organisme qui recevra la subvention : ",null,{"$f":"C2","v":0}]
["Frais directs de recherche (A, B, C, D) ",null,null,"Année",1,null,"Frais directs de recherche (A, B, C, D) ",null,null,"Année",2,null,"Frais directs de recherche (A, B, C, D) ",null,null,"Année",3]
["A) Ressources humaines",null,null,null,null,null,"A) Ressources humaines",null,null,null,null,null,"A) Ressources humaines"]
["Salaires",null,null,null,null,null,"Salaires",null,null,null,null,null,"Salaires"]
["Nom","Tâches","Nb jours / année ","Traitement par jour (incluant les avantages sociaux)","Coûts",null,"Nom","Tâches","Nb jours / année ","Traitement par jour (incluant les avantages sociaux)","Coûts",null,"Nom","Tâches","Nb jours / année ","Traitement par jour (incluant les avantages sociaux)","Coûts"]
[null,null,null,null,{"$f":"D7*C7","v":0},null,null,null,null,null,{"$f":"J7*I7","v":0},null,null,null,null,null,{"$f":"P7*O7","v":0}]
[null,null,null,null,{"$f":"D8*C8","v":0},null,null,null,null,null,{"$f":"J8*I8","v":0},null,null,null,null,null,{"$f":"P8*O8","v":0}]
[null,null,null,null,0,null,null,null,null,null,0,null,null,null,null,null,0]
[null,null,null,null,{"$f":"D10*C10","v":0},null,null,null,null,null,{"$f":"J10*I10","v":0},null,null,null,null,null,{"$f":"P10*O10","v":0}]
[null,null,null,null,{"$f":"D11*C11","v":0},null,null,null,null,null,{"$f":"J11*I11","v":0},null,null,null,null,null,{"$f":"P11*O11","v":0}]
[null,null,null,null,{"$f":"D12*C12","v":0},null,null,null,null,null,{"$f":"J12*I12","v":0},null,null,null,null,null,{"$f":"P12*O12","v":0}]
[null,null,null,null,{"$f":"D13*C13","v":0},null,null,null,null,null,{"$f":"J13*I13","v":0},null,null,null,null,null,{"$f":"P13*O13","v":0}]
["Allocations (admissibles pour les étudiants uniquement)",null,null,null,null,null,"Allocations (admissibles pour les étudiants uniquement)",null,null,null,null,null,"Allocations (admissibles pour les étudiants uniquement)"]
["Nom","Tâches","Nb jours / année ",null,"Allocation ",null,"Nom","Tâches","Nb jours / année ",null,"Allocation ",null,"Nom","Tâches","Nb jours / année ",null,"Allocation "]
[]
[]
[]
[]
[]
[]
[]
[]
[null,null,"Sous-total A :",null,{"$f":"SUM(E7:E13,E16:E23)","v":0},null,null,null,"Sous-total A :",null,{"$f":"SUM(K7:K13,K16:K23)","v":0},null,null,null,"Sous-total A :",null,{"$f":"SUM(Q7:Q13,Q16:Q23)","v":0}]
[]
["B) Achat ou location d’équipement",null,null,null,"Coûts",null,"B) Achat ou location d’équipement",null,null,null,"Coûts",null,"B) Achat ou location d’équipement",null,null,null,"Coûts"]
["Préciser et justifier :",null,null,null,null,null,"Préciser et justifier :",null,null,null,null,null,"Préciser et justifier :"]
[]
[]
[]
[]
[null,null,"Sous-total B :",null,{"$f":"SUM(E28:E31)","v":0},null,null,null,"Sous-total B :",null,{"$f":"SUM(K28:K31)","v":0},null,null,null,"Sous-total B :",null,{"$f":"SUM(Q28:Q31)","v":0}]
[]
["C) Matériel, produits consommables et fournitures",null,null,null,"Coûts",null,"C) Matériel, produits consommables et fournitures",null,null,null,"Coûts",null,"C) Matériel, produits consommables et fournitures",null,null,null,"Coûts"]
["Préciser et justifier :",null,null,null,null,null,"Préciser et justifier :",null,null,null,null,null,"Préciser et justifier :"]
[]
[]
[]
[]
[null,null,"Sous-total C :",null,{"$f":"SUM(E36:E39)","v":0},null,null,null,"Sous-total C :",null,{"$f":"SUM(K36:K39)","v":0},null,null,null,"Sous-total C :",null,{"$f":"SUM(Q36:Q39)","v":0}]
[]
["D) Frais de déplacement liés à la réalisation de la recherche",null,null,null,"Coûts",null,"D) Frais de déplacement liés à la réalisation de la recherche",null,null,null,"Coûts",null,"D) Frais de déplacement liés à la réalisation de la recherche",null,null,null,"Coûts"]
["Préciser et justifier :",null,null,null,null,null,"Préciser et justifier :",null,null,null,null,null,"Préciser et justifier :"]
[]
[]
[]
[]
[null,null,"Sous-total D :",null,{"$f":"SUM(E44:E47)","v":0},null,null,null,"Sous-total D :",null,{"$f":"SUM(K44:K47)","v":0},null,null,null,"Sous-total D :",null,{"$f":"SUM(Q44:Q47)","v":0}]
[]
[null,null,null,"Total frais directs de recherche (A + B + C+ D)",{"$f":"E40+E32+E24+E48","v":0},null,null,null,null,"Total frais directs de recherche (A + B + C+ D)",{"$f":"K40+K32+K24+K48","v":0},null,null,null,null,"Total frais directs de recherche (A + B + C+ D)",{"$f":"Q40+Q32+Q24+Q48","v":0}]
[]
["E) Frais indirects de recherche (FIR)",null,null,null,"Coûts",null,"E) Frais indirects de recherche (FIR)",null,null,null,"Coûts",null,"E) Frais indirects de recherche (FIR)",null,null,null,"Coûts"]
["Frais indirects de recherche demandés par votre organisme (%) :",null,null,null,{"$f":"D53*E50","v":0},null,"Frais indirects de recherche demandés par votre organisme (%) :",null,null,null,{"$f":"J53*K50","v":0},null,"Frais indirects de recherche demandés par votre organisme (%) :",null,null,null,{"$f":"P53*Q50","v":0}]
[]
["F) Compensation pour les participants à la recherche, le cas échéant",null,null,null,"Coûts",null,"F) Compensation pour les participants à la recherche, le cas échéant",null,null,null,"Coûts",null,"F) Compensation pour les participants à la recherche, le cas échéant",null,null,null,"Coûts"]
["Préciser et justifier le montant prévu par participant : ",null,null,null,null,null,"Préciser et justifier le montant prévu par participant : ",null,null,null,null,null,"Préciser et justifier le montant prévu par participant : "]
[]
[]
[null,null,"Sous-total F:",null,{"$f":"SUM(E57:E58)","v":0},null,null,null,"Sous-total F:",null,{"$f":"SUM(K57:K58)","v":0},null,null,null,"Sous-total F:",null,{"$f":"SUM(Q57:Q58)","v":0}]
[]
["G) Honoraires professionnels et autres contrats",null,null,null,"Coûts",null,"G) Honoraires professionnels et autres contrats",null,null,null,"Coûts",null,"G) Honoraires professionnels et autres contrats",null,null,null,"Coûts"]
["Préciser et justifier : ",null,null,null,null,null,"Préciser et justifier : ",null,null,null,null,null,"Préciser et justifier : "]
[]
[]
[null,null,"Sous-total G:",null,{"$f":"SUM(E63:E64)","v":0},null,null,null,"Sous-total G:",null,{"$f":"SUM(K63:K64)","v":0},null,null,null,"Sous-total G:",null,{"$f":"SUM(Q63:Q64)","v":0}]
[]
["H) Dépenses de diffusion scientifique",null,null,null,"Coûts",null,"H) Dépenses de diffusion scientifique",null,null,null,"Coûts",null,"H) Dépenses de diffusion scientifique",null,null,null,"Coûts"]
[]
["Présentations à des congrès ou colloques⁽¹⁾. Préciser : ",null,null,null,null,null,"Présentations à des congrès ou colloques⁽¹⁾. Préciser : ",null,null,null,null,null,"Présentations à des congrès ou colloques⁽¹⁾. Préciser : "]
[null,null,null,null,0,null,null,null,null,null,0,null,null,null,null,null,0]
["Rencontres avec les milieux et les groupes concernés. Préciser :",null,null,null,null,null,"Rencontres avec les milieux et les groupes concernés. Préciser :",null,null,null,null,null,"Rencontres avec les milieux et les groupes concernés. Préciser :"]
[]
["Frais de traduction ou de publication autres que les rapports publiés par l’IRSST. Préciser :",null,null,null,null,null,"Frais de traduction ou de publication autres que les rapports publiés par l’IRSST. Préciser :",null,null,null,null,null,"Frais de traduction ou de publication autres que les rapports publiés par l’IRSST. Préciser :"]
[]
[]
[null,null,"Sous-total H:",null,{"$f":"SUM(E70:E75)","v":0},null,null,null,"Sous-total H:",null,{"$f":"SUM(K70:K75)","v":0},null,null,null,"Sous-total H:",null,{"$f":"SUM(Q70:Q75)","v":0}]
[]
["Total pour l’année (Total des frais directs de recherche + E + F + G + H):",null,null,null,{"$f":"E76+E65+E59+E53+E50","v":0},null,"Total pour l’année (Total des frais directs de recherche + E + F + G + H):",null,null,null,{"$f":"K76+K65+K59+K53+K50","v":0},null,"Total pour l’année (Total des frais directs de recherche + E + F + G + H):",null,null,null,{"$f":"Q76+Q65+Q59+Q53+Q50","v":0}]
[]
["(1) Les frais de participation à des congrès ou colloques ne sont pas admissibles pour l’année 1 du projet de recherche.",null,null,null,null,null,"(1) Les frais de participation à des congrès ou colloques ne sont pas admissibles pour l’année 1 du projet de recherche.",null,null,null,null,null,"(1) Les frais de participation à des congrès ou colloques ne sont pas admissibles pour l’année 1 du projet de recherche."]

{"sheet":"Budget - organisme 2","index":2,"n_rows":80,"n_cols":17,"rows_kept":80,"cut":false,"hidden":false,"merged":[[1,0,1,1],[1,2,1,4],[1,6,1,7],[1,8,1,10],[1,12,1,13],[1,14,1,16],[0,0,0,1],[0,2,0,4],[0,6,0,7],[0,8,0,10],[0,12,0,13],[0,14,0,16],[4,0,4,4],[4,6,4,10],[4,12,4,16],[14,2,14,3],[14,8,14,9],[14,14,14,15],[2,0,2,2],[2,6,2,8],[2,12,2,14],[3,0,3,4],[3,6,3,10],[3,12,3,16],[17,2,17,3],[17,8,17,9],[17,14,17,15],[18,2,18,3],[18,8,18,9],[18,14,18,15],[15,2,15,3],[15,8,15,9],[15,14,15,15],[16,2,16,3],[16,8,16,9],[16,14,16,15],[21,2,21,3],[21,8,21,9],[21,14,21,15],[22,2,22,3],[22,8,22,9],[22,14,22,15],[19,2,19,3],[19,8,19,9],[19,14,19,15],[20,2,20,3],[20,8,20,9],[20,14,20,15],[27,0,27,3],[27,6,27,9],[27,12,27,15],[28,0,28,3],[28,6,28,9],[28,12,28,15],[23,2,23,3],[23,8,23,9],[23,14,23,15],[26,0,26,3],[26,6,26,9],[26,12,26,15],[25,0,25,1],[25,6,25,7],[25,12,25,13],[31,2,31,3],[31,8,31,9],[31,14,31,15],[34,0,34,3],[34,6,34,9],[34,12,34,15],[29,0,29,3],[29,6,29,9],[29,12,29,15],[30,0,30,3],[30,6,30,9],[30,12,30,15],[37,0,37,3],[37,6,37,9],[37,12,37,15],[38,0,38,3],[38,6,38,9],[38,12,38,15],[35,0,35,3],[35,6,35,9],[35,12,35,15],[36,0,36,3],[36,6,36,9],[36,12,36,15],[43,0,43,3],[43,6,43,9],[43,12,43,15],[44,0,44,3],[44,6,44,9],[44,12,44,15],[39,2,39,3],[39,8,39,9],[39,14,39,15],[42,0,42,3],[42,6,42,9],[42,12,42,15],[47,2,47,3],[47,8,47,9],[47,14,47,15],[52,0,52,2],[52,6,52,8],[52,12,52,14],[45,0,45,3],[45,6,45,9],[45,12,45,15],[46,0,46,3],[46,6,46,9],[46,12,46,15],[57,0,57,3],[57,6,57,9],[57,12,57,15],[58,2,58,3],[58,8,58,9],[58,14,58,15],[55,0,55,3],[55,6,55,9],[55,12,55,15],[56,0,56,3],[56,6,56,9],[56,12,56,15],[63,0,63,3],[63,6,63,9],[63,12,63,15],[64,2,64,3],[64,8,64,9],[64,14,64,15],[61,0,61,3],[61,6,61,9],[61,12,61,15],[62,0,62,3],[62,6,62,9],[62,12,62,15],[70,0,70,3],[70,6,70,9],[70,12,70,15],[71,0,71,3],[71,6,71,9],[71,12,71,15],[68,0,68,3],[68,6,68,9],[68,12,68,15],[69,0,69,3],[69,6,69,9],[69,12,69,15],[74,0,74,3],[74,6,74,9],[74,12,74,15],[75,2,75,3],[75,8,75,9],[75,14,75,15],[72,0,72,3],[72,6,72,9],[72,12,72,15],[73,0,73,3],[73,6,73,9],[73,12,73,15]]}
["No de dossier : ",null,null,null,null,null,"No de dossier : ",null,{"$f":"C1","v":0},null,null,null,"No de dossier : ",null,{"$f":"C1","v":0}]
["Organisme qui recevra la subvention : ",null,null,null,null,null,"Organisme qui recevra la subvention : ",null,{"$f":"C2","v":0},null,null,null,"Organisme qui recevra la subvention : ",null,{"$f":"C2","v":0}]
["Frais directs de recherche (A, B, C, D) ",null,null,"Année",1,null,"Frais directs de recherche (A, B, C, D) ",null,null,"Année",2,null,"Frais directs de recherche (A, B, C, D) ",null,null,"Année",3]
["A) Ressources humaines",null,null,null,null,null,"A) Ressources humaines",null,null,null,null,null,"A) Ressources humaines"]
["Salaires",null,null,null,null,null,"Salaires",null,null,null,null,null,"Salaires"]
["Nom","Tâches","Nb jours / année ","Traitement par jour (incluant les avantages sociaux)","Coûts",null,"Nom","Tâches","Nb jours / année ","Traitement par jour (incluant les avantages sociaux)","Coûts",null,"Nom","Tâches","Nb jours / année ","Traitement par jour (incluant les avantages sociaux)","Coûts"]
[null,null,null,null,{"$f":"D7*C7","v":0},null,null,null,null,null,{"$f":"J7*I7","v":0},null,null,null,null,null,{"$f":"P7*O7","v":0}]
[null,null,null,null,{"$f":"D8*C8","v":0},null,null,null,null,null,{"$f":"J8*I8","v":0},null,null,null,null,null,{"$f":"P8*O8","v":0}]
[null,null,null,null,0,null,null,null,null,null,0,null,null,null,null,null,0]
[null,null,null,null,{"$f":"D10*C10","v":0},null,null,null,null,null,{"$f":"J10*I10","v":0},null,null,null,null,null,{"$f":"P10*O10","v":0}]
[null,null,null,null,{"$f":"D11*C11","v":0},null,null,null,null,null,{"$f":"J11*I11","v":0},null,null,null,null,null,{"$f":"P11*O11","v":0}]
[null,null,null,null,{"$f":"D12*C12","v":0},null,null,null,null,null,{"$f":"J12*I12","v":0},null,null,null,null,null,{"$f":"P12*O12","v":0}]
[null,null,null,null,{"$f":"D13*C13","v":0},null,null,null,null,null,{"$f":"J13*I13","v":0},null,null,null,null,null,{"$f":"P13*O13","v":0}]
["Allocations (admissibles pour les étudiants uniquement)",null,null,null,null,null,"Allocations (admissibles pour les étudiants uniquement)",null,null,null,null,null,"Allocations (admissibles pour les étudiants uniquement)"]
["Nom","Tâches","Nb jours / année ",null,"Allocation ",null,"Nom","Tâches","Nb jours / année ",null,"Allocation ",null,"Nom","Tâches","Nb jours / année ",null,"Allocation "]
[]
[]
[]
[]
[]
[]
[]
[]
[null,null,"Sous-total A :",null,{"$f":"SUM(E7:E13,E16:E23)","v":0},null,null,null,"Sous-total A :",null,{"$f":"SUM(K7:K13,K16:K23)","v":0},null,null,null,"Sous-total A :",null,{"$f":"SUM(Q7:Q13,Q16:Q23)","v":0}]
[]
["B) Achat ou location d’équipement",null,null,null,"Coûts",null,"B) Achat ou location d’équipement",null,null,null,"Coûts",null,"B) Achat ou location d’équipement",null,null,null,"Coûts"]
["Préciser et justifier :",null,null,null,null,null,"Préciser et justifier :",null,null,null,null,null,"Préciser et justifier :"]
[]
[]
[]
[]
[null,null,"Sous-total B :",null,{"$f":"SUM(E28:E31)","v":0},null,null,null,"Sous-total B :",null,{"$f":"SUM(K28:K31)","v":0},null,null,null,"Sous-total B :",null,{"$f":"SUM(Q28:Q31)","v":0}]
[]
["C) Matériel, produits consommables et fournitures",null,null,null,"Coûts",null,"C) Matériel, produits consommables et fournitures",null,null,null,"Coûts",null,"C) Matériel, produits consommables et fournitures",null,null,null,"Coûts"]
["Préciser et justifier :",null,null,null,null,null,"Préciser et justifier :",null,null,null,null,null,"Préciser et justifier :"]
[]
[]
[]
[]
[null,null,"Sous-total C :",null,{"$f":"SUM(E36:E39)","v":0},null,null,null,"Sous-total C :",null,{"$f":"SUM(K36:K39)","v":0},null,null,null,"Sous-total C :",null,{"$f":"SUM(Q36:Q39)","v":0}]
[]
["D) Frais de déplacement liés à la réalisation de la recherche",null,null,null,"Coûts",null,"D) Frais de déplacement liés à la réalisation de la recherche",null,null,null,"Coûts",null,"D) Frais de déplacement liés à la réalisation de la recherche",null,null,null,"Coûts"]
["Préciser et justifier :",null,null,null,null,null,"Préciser et justifier :",null,null,null,null,null,"Préciser et justifier :"]
[]
[]
[]
[]
[null,null,"Sous-total D :",null,{"$f":"SUM(E44:E47)","v":0},null,null,null,"Sous-total D :",null,{"$f":"SUM(K44:K47)","v":0},null,null,null,"Sous-total D :",null,{"$f":"SUM(Q44:Q47)","v":0}]
[]
[null,null,null,"Total frais directs de recherche (A + B + C+ D)",{"$f":"E40+E32+E24+E48","v":0},null,null,null,null,"Total frais directs de recherche (A + B + C+ D)",{"$f":"K40+K32+K24+K48","v":0},null,null,null,null,"Total frais directs de recherche (A + B + C+ D)",{"$f":"Q40+Q32+Q24+Q48","v":0}]
[]
["E) Frais indirects de recherche (FIR)",null,null,null,"Coûts",null,"E) Frais indirects de recherche (FIR)",null,null,null,"Coûts",null,"E) Frais indirects de recherche (FIR)",null,null,null,"Coûts"]
["Frais indirects de recherche demandés par votre organisme (%) :",null,null,null,{"$f":"D53*E50","v":0},null,"Frais indirects de recherche demandés par votre organisme (%) :",null,null,null,{"$f":"J53*K50","v":0},null,"Frais indirects de recherche demandés par votre organisme (%) :",null,null,null,{"$f":"P53*Q50","v":0}]
[]
["F) Compensation pour les participants à la recherche, le cas échéant",null,null,null,"Coûts",null,"F) Compensation pour les participants à la recherche, le cas échéant",null,null,null,"Coûts",null,"F) Compensation pour les participants à la recherche, le cas échéant",null,null,null,"Coûts"]
["Préciser et justifier le montant prévu par participant : ",null,null,null,null,null,"Préciser et justifier le montant prévu par participant : ",null,null,null,null,null,"Préciser et justifier le montant prévu par participant : "]
[]
[]
[null,null,"Sous-total F:",null,{"$f":"SUM(E57:E58)","v":0},null,null,null,"Sous-total F:",null,{"$f":"SUM(K57:K58)","v":0},null,null,null,"Sous-total F:",null,{"$f":"SUM(Q57:Q58)","v":0}]
[]
["G) Honoraires professionnels et autres contrats",null,null,null,"Coûts",null,"G) Honoraires professionnels et autres contrats",null,null,null,"Coûts",null,"G) Honoraires professionnels et autres contrats",null,null,null,"Coûts"]
["Préciser et justifier : ",null,null,null,null,null,"Préciser et justifier : ",null,null,null,null,null,"Préciser et justifier : "]
[]
[]
[null,null,"Sous-total G:",null,{"$f":"SUM(E63:E64)","v":0},null,null,null,"Sous-total G:",null,{"$f":"SUM(K63:K64)","v":0},null,null,null,"Sous-total G:",null,{"$f":"SUM(Q63:Q64)","v":0}]
[]
["H) Dépenses de diffusion scientifique",null,null,null,"Coûts",null,"H) Dépenses de diffusion scientifique",null,null,null,"Coûts",null,"H) Dépenses de diffusion scientifique",null,null,null,"Coûts"]
[]
["Présentations à des congrès ou colloques⁽¹⁾. Préciser : ",null,null,null,null,null,"Présentations à des congrès ou colloques⁽¹⁾. Préciser : ",null,null,null,null,null,"Présentations à des congrès ou colloques⁽¹⁾. Préciser : "]
[null,null,null,null,0,null,null,null,null,null,0,null,null,null,null,null,0]
["Rencontres avec les milieux et les groupes concernés. Préciser :",null,null,null,null,null,"Rencontres avec les milieux et les groupes concernés. Préciser :",null,null,null,null,null,"Rencontres avec les milieux et les groupes concernés. Préciser :"]
[]
["Frais de traduction ou de publication autres que les rapports publiés par l’IRSST. Préciser :",null,null,null,null,null,"Frais de traduction ou de publication autres que les rapports publiés par l’IRSST. Préciser :",null,null,null,null,null,"Frais de traduction ou de publication autres que les rapports publiés par l’IRSST. Préciser :"]
[]
[]
[null,null,"Sous-total H:",null,{"$f":"SUM(E70:E75)","v":0},null,null,null,"Sous-total H:",null,{"$f":"SUM(K70:K75)","v":0},null,null,null,"Sous-total H:",null,{"$f":"SUM(Q70:Q75)","v":0}]
[]
["Total pour l’année (Total des frais directs de recherche + E + F + G + H):",null,null,null,{"$f":"E76+E65+E59+E53+E50","v":0},null,"Total pour l’année (Total des frais directs de recherche + E + F + G + H):",null,null,null,{"$f":"K76+K65+K59+K53+K50","v":0},null,"Total pour l’année (Total des frais directs de recherche + E + F + G + H):",null,null,null,{"$f":"Q76+Q65+Q59+Q53+Q50","v":0}]
[]
["(1) Les frais de participation à des congrès ou colloques ne sont pas admissibles pour l’année 1 du projet de recherche.",null,null,null,null,null,"(1) Les frais de participation à des congrès ou colloques ne sont pas admissibles pour l’année 1 du projet de recherche.",null,null,null,null,null,"(1) Les frais de participation à des congrès ou colloques ne sont pas admissibles pour l’année 1 du projet de recherche."]

{"sheet":"Budget - organisme 3","index":3,"n_rows":80,"n_cols":17,"rows_kept":80,"cut":false,"hidden":false,"merged":[[1,0,1,1],[1,2,1,4],[1,6,1,7],[1,8,1,10],[1,12,1,13],[1,14,1,16],[0,0,0,1],[0,2,0,4],[0,6,0,7],[0,8,0,10],[0,12,0,13],[0,14,0,16],[4,0,4,4],[4,6,4,10],[4,12,4,16],[14,2,14,3],[14,8,14,9],[14,14,14,15],[2,0,2,2],[2,6,2,8],[2,12,2,14],[3,0,3,4],[3,6,3,10],[3,12,3,16],[17,2,17,3],[17,8,17,9],[17,14,17,15],[18,2,18,3],[18,8,18,9],[18,14,18,15],[15,2,15,3],[15,8,15,9],[15,14,15,15],[16,2,16,3],[16,8,16,9],[16,14,16,15],[21,2,21,3],[21,8,21,9],[21,14,21,15],[22,2,22,3],[22,8,22,9],[22,14,22,15],[19,2,19,3],[19,8,19,9],[19,14,19,15],[20,2,20,3],[20,8,20,9],[20,14,20,15],[27,0,27,3],[27,6,27,9],[27,12,27,15],[28,0,28,3],[28,6,28,9],[28,12,28,15],[23,2,23,3],[23,8,23,9],[23,14,23,15],[26,0,26,3],[26,6,26,9],[26,12,26,15],[25,12,25,13],[25,6,25,7],[25,0,25,1],[31,2,31,3],[31,8,31,9],[31,14,31,15],[34,0,34,3],[34,6,34,9],[34,12,34,15],[29,0,29,3],[29,6,29,9],[29,12,29,15],[30,0,30,3],[30,6,30,9],[30,12,30,15],[37,0,37,3],[37,6,37,9],[37,12,37,15],[38,0,38,3],[38,6,38,9],[38,12,38,15],[35,0,35,3],[35,6,35,9],[35,12,35,15],[36,0,36,3],[36,6,36,9],[36,12,36,15],[43,0,43,3],[43,6,43,9],[43,12,43,15],[44,0,44,3],[44,6,44,9],[44,12,44,15],[39,2,39,3],[39,8,39,9],[39,14,39,15],[42,0,42,3],[42,6,42,9],[42,12,42,15],[47,2,47,3],[47,8,47,9],[47,14,47,15],[52,0,52,2],[52,6,52,8],[52,12,52,14],[45,0,45,3],[45,6,45,9],[45,12,45,15],[46,0,46,3],[46,6,46,9],[46,12,46,15],[57,0,57,3],[57,6,57,9],[57,12,57,15],[58,2,58,3],[58,8,58,9],[58,14,58,15],[55,0,55,3],[55,6,55,9],[55,12,55,15],[56,0,56,3],[56,6,56,9],[56,12,56,15],[63,0,63,3],[63,6,63,9],[63,12,63,15],[64,2,64,3],[64,8,64,9],[64,14,64,15],[61,0,61,3],[61,6,61,9],[61,12,61,15],[62,0,62,3],[62,6,62,9],[62,12,62,15],[70,0,70,3],[70,6,70,9],[70,12,70,15],[71,0,71,3],[71,6,71,9],[71,12,71,15],[68,0,68,3],[68,6,68,9],[68,12,68,15],[69,0,69,3],[69,6,69,9],[69,12,69,15],[74,0,74,3],[74,6,74,9],[74,12,74,15],[75,2,75,3],[75,8,75,9],[75,14,75,15],[72,0,72,3],[72,6,72,9],[72,12,72,15],[73,0,73,3],[73,6,73,9],[73,12,73,15]]}
["No de dossier : ",null,null,null,null,null,"No de dossier : ",null,{"$f":"C1","v":0},null,null,null,"No de dossier : ",null,{"$f":"C1","v":0}]
["Organisme qui recevra la subvention : ",null,null,null,null,null,"Organisme qui recevra la subvention : ",null,{"$f":"C2","v":0},null,null,null,"Organisme qui recevra la subvention : ",null,{"$f":"C2","v":0}]
["Frais directs de recherche (A, B, C, D) ",null,null,"Année",1,null,"Frais directs de recherche (A, B, C, D) ",null,null,"Année",2,null,"Frais directs de recherche (A, B, C, D) ",null,null,"Année",3]
["A) Ressources humaines",null,null,null,null,null,"A) Ressources humaines",null,null,null,null,null,"A) Ressources humaines"]
["Salaires",null,null,null,null,null,"Salaires",null,null,null,null,null,"Salaires"]
["Nom","Tâches","Nb jours / année ","Traitement par jour (incluant les avantages sociaux)","Coûts",null,"Nom","Tâches","Nb jours / année ","Traitement par jour (incluant les avantages sociaux)","Coûts",null,"Nom","Tâches","Nb jours / année ","Traitement par jour (incluant les avantages sociaux)","Coûts"]
[null,null,null,null,{"$f":"D7*C7","v":0},null,null,null,null,null,{"$f":"J7*I7","v":0},null,null,null,null,null,{"$f":"P7*O7","v":0}]
[null,null,null,null,{"$f":"D8*C8","v":0},null,null,null,null,null,{"$f":"J8*I8","v":0},null,null,null,null,null,{"$f":"P8*O8","v":0}]
[null,null,null,null,0,null,null,null,null,null,0,null,null,null,null,null,0]
[null,null,null,null,{"$f":"D10*C10","v":0},null,null,null,null,null,{"$f":"J10*I10","v":0},null,null,null,null,null,{"$f":"P10*O10","v":0}]
[null,null,null,null,{"$f":"D11*C11","v":0},null,null,null,null,null,{"$f":"J11*I11","v":0},null,null,null,null,null,{"$f":"P11*O11","v":0}]
[null,null,null,null,{"$f":"D12*C12","v":0},null,null,null,null,null,{"$f":"J12*I12","v":0},null,null,null,null,null,{"$f":"P12*O12","v":0}]
[null,null,null,null,{"$f":"D13*C13","v":0},null,null,null,null,null,{"$f":"J13*I13","v":0},null,null,null,null,null,{"$f":"P13*O13","v":0}]
["Allocations (admissibles pour les étudiants uniquement)",null,null,null,null,null,"Allocations (admissibles pour les étudiants uniquement)",null,null,null,null,null,"Allocations (admissibles pour les étudiants uniquement)"]
["Nom","Tâches","Nb jours / année ",null,"Allocation ",null,"Nom","Tâches","Nb jours / année ",null,"Allocation ",null,"Nom","Tâches","Nb jours / année ",null,"Allocation "]
[]
[]
[]
[]
[]
[]
[]
[]
[null,null,"Sous-total A :",null,{"$f":"SUM(E7:E13,E16:E23)","v":0},null,null,null,"Sous-total A :",null,{"$f":"SUM(K7:K13,K16:K23)","v":0},null,null,null,"Sous-total A :",null,{"$f":"SUM(Q7:Q13,Q16:Q23)","v":0}]
[]
["B) Achat ou location d’équipement",null,null,null,"Coûts",null,"B) Achat ou location d’équipement",null,null,null,"Coûts",null,"B) Achat ou location d’équipement",null,null,null,"Coûts"]
["Préciser et justifier :",null,null,null,null,null,"Préciser et justifier :",null,null,null,null,null,"Préciser et justifier :"]
[]
[]
[]
[]
[null,null,"Sous-total B :",null,{"$f":"SUM(E28:E31)","v":0},null,null,null,"Sous-total B :",null,{"$f":"SUM(K28:K31)","v":0},null,null,null,"Sous-total B :",null,{"$f":"SUM(Q28:Q31)","v":0}]
[]
["C) Matériel, produits consommables et fournitures",null,null,null,"Coûts",null,"C) Matériel, produits consommables et fournitures",null,null,null,"Coûts",null,"C) Matériel, produits consommables et fournitures",null,null,null,"Coûts"]
["Préciser et justifier :",null,null,null,null,null,"Préciser et justifier :",null,null,null,null,null,"Préciser et justifier :"]
[]
[]
[]
[]
[null,null,"Sous-total C :",null,{"$f":"SUM(E36:E39)","v":0},null,null,null,"Sous-total C :",null,{"$f":"SUM(K36:K39)","v":0},null,null,null,"Sous-total C :",null,{"$f":"SUM(Q36:Q39)","v":0}]
[]
["D) Frais de déplacement liés à la réalisation de la recherche",null,null,null,"Coûts",null,"D) Frais de déplacement liés à la réalisation de la recherche",null,null,null,"Coûts",null,"D) Frais de déplacement liés à la réalisation de la recherche",null,null,null,"Coûts"]
["Préciser et justifier :",null,null,null,null,null,"Préciser et justifier :",null,null,null,null,null,"Préciser et justifier :"]
[]
[]
[]
[]
[null,null,"Sous-total D :",null,{"$f":"SUM(E44:E47)","v":0},null,null,null,"Sous-total D :",null,{"$f":"SUM(K44:K47)","v":0},null,null,null,"Sous-total D :",null,{"$f":"SUM(Q44:Q47)","v":0}]
[]
[null,null,null,"Total frais directs de recherche (A + B + C+ D)",{"$f":"E40+E32+E24+E48","v":0},null,null,null,null,"Total frais directs de recherche (A + B + C+ D)",{"$f":"K40+K32+K24+K48","v":0},null,null,null,null,"Total frais directs de recherche (A + B + C+ D)",{"$f":"Q40+Q32+Q24+Q48","v":0}]
[]
["E) Frais indirects de recherche (FIR)",null,null,null,"Coûts",null,"E) Frais indirects de recherche (FIR)",null,null,null,"Coûts",null,"E) Frais indirects de recherche (FIR)",null,null,null,"Coûts"]
["Frais indirects de recherche demandés par votre organisme (%) :",null,null,null,{"$f":"D53*E50","v":0},null,"Frais indirects de recherche demandés par votre organisme (%) :",null,null,null,{"$f":"J53*K50","v":0},null,"Frais indirects de recherche demandés par votre organisme (%) :",null,null,null,{"$f":"P53*Q50","v":0}]
[]
["F) Compensation pour les participants à la recherche, le cas échéant",null,null,null,"Coûts",null,"F) Compensation pour les participants à la recherche, le cas échéant",null,null,null,"Coûts",null,"F) Compensation pour les participants à la recherche, le cas échéant",null,null,null,"Coûts"]
["Préciser et justifier le montant prévu par participant : ",null,null,null,null,null,"Préciser et justifier le montant prévu par participant : ",null,null,null,null,null,"Préciser et justifier le montant prévu par participant : "]
[]
[]
[null,null,"Sous-total F:",null,{"$f":"SUM(E57:E58)","v":0},null,null,null,"Sous-total F:",null,{"$f":"SUM(K57:K58)","v":0},null,null,null,"Sous-total F:",null,{"$f":"SUM(Q57:Q58)","v":0}]
[]
["G) Honoraires professionnels et autres contrats",null,null,null,"Coûts",null,"G) Honoraires professionnels et autres contrats",null,null,null,"Coûts",null,"G) Honoraires professionnels et autres contrats",null,null,null,"Coûts"]
["Préciser et justifier : ",null,null,null,null,null,"Préciser et justifier : ",null,null,null,null,null,"Préciser et justifier : "]
[]
[]
[null,null,"Sous-total G:",null,{"$f":"SUM(E63:E64)","v":0},null,null,null,"Sous-total G:",null,{"$f":"SUM(K63:K64)","v":0},null,null,null,"Sous-total G:",null,{"$f":"SUM(Q63:Q64)","v":0}]
[]
["H) Dépenses de diffusion scientifique",null,null,null,"Coûts",null,"H) Dépenses de diffusion scientifique",null,null,null,"Coûts",null,"H) Dépenses de diffusion scientifique",null,null,null,"Coûts"]
[]
["Présentations à des congrès ou colloques⁽¹⁾. Préciser : ",null,null,null,null,null,"Présentations à des congrès ou colloques⁽¹⁾. Préciser : ",null,null,null,null,null,"Présentations à des congrès ou colloques⁽¹⁾. Préciser : "]
[null,null,null,null,0,null,null,null,null,null,0,null,null,null,null,null,0]
["Rencontres avec les milieux et les groupes concernés. Préciser :",null,null,null,null,null,"Rencontres avec les milieux et les groupes concernés. Préciser :",null,null,null,null,null,"Rencontres avec les milieux et les groupes concernés. Préciser :"]
[]
["Frais de traduction ou de publication autres que les rapports publiés par l’IRSST. Préciser :",null,null,null,null,null,"Frais de traduction ou de publication autres que les rapports publiés par l’IRSST. Préciser :",null,null,null,null,null,"Frais de traduction ou de publication autres que les rapports publiés par l’IRSST. Préciser :"]
[]
[]
[null,null,"Sous-total H:",null,{"$f":"SUM(E70:E75)","v":0},null,null,null,"Sous-total H:",null,{"$f":"SUM(K70:K75)","v":0},null,null,null,"Sous-total H:",null,{"$f":"SUM(Q70:Q75)","v":0}]
[]
["Total pour l’année (Total des frais directs de recherche + E + F + G + H):",null,null,null,{"$f":"E76+E65+E59+E53+E50","v":0},null,"Total pour l’année (Total des frais directs de recherche + E + F + G + H):",null,null,null,{"$f":"K76+K65+K59+K53+K50","v":0},null,"Total pour l’année (Total des frais directs de recherche + E + F + G + H):",null,null,null,{"$f":"Q76+Q65+Q59+Q53+Q50","v":0}]
[]
["(1) Les frais de participation à des congrès ou colloques ne sont pas admissibles pour l’année 1 du projet de recherche.",null,null,null,null,null,"(1) Les frais de participation à des congrès ou colloques ne sont pas admissibles pour l’année 1 du projet de recherche.",null,null,null,null,null,"(1) Les frais de participation à des congrès ou colloques ne sont pas admissibles pour l’année 1 du projet de recherche."]

{"sheet":"Budget - organisme 4","index":4,"n_rows":80,"n_cols":17,"rows_kept":80,"cut":false,"hidden":false,"merged":[[1,0,1,1],[1,2,1,4],[1,6,1,7],[1,8,1,10],[1,12,1,13],[1,14,1,16],[0,0,0,1],[0,2,0,4],[0,6,0,7],[0,8,0,10],[0,12,0,13],[0,14,0,16],[4,0,4,4],[4,6,4,10],[4,12,4,16],[14,2,14,3],[14,8,14,9],[14,14,14,15],[2,0,2,2],[2,6,2,8],[2,12,2,14],[3,0,3,4],[3,6,3,10],[3,12,3,16],[17,2,17,3],[17,8,17,9],[17,14,17,15],[18,2,18,3],[18,8,18,9],[18,14,18,15],[15,2,15,3],[15,8,15,9],[15,14,15,15],[16,2,16,3],[16,8,16,9],[16,14,16,15],[21,2,21,3],[21,8,21,9],[21,14,21,15],[22,2,22,3],[22,8,22,9],[22,14,22,15],[19,2,19,3],[19,8,19,9],[19,14,19,15],[20,2,20,3],[20,8,20,9],[20,14,20,15],[27,0,27,3],[27,6,27,9],[27,12,27,15],[28,0,28,3],[28,6,28,9],[28,12,28,15],[23,2,23,3],[23,8,23,9],[23,14,23,15],[26,0,26,3],[26,6,26,9],[26,12,26,15],[25,12,25,13],[25,6,25,7],[25,0,25,1],[31,2,31,3],[31,8,31,9],[31,14,31,15],[34,0,34,3],[34,6,34,9],[34,12,34,15],[29,0,29,3],[29,6,29,9],[29,12,29,15],[30,0,30,3],[30,6,30,9],[30,12,30,15],[37,0,37,3],[37,6,37,9],[37,12,37,15],[38,0,38,3],[38,6,38,9],[38,12,38,15],[35,0,35,3],[35,6,35,9],[35,12,35,15],[36,0,36,3],[36,6,36,9],[36,12,36,15],[43,0,43,3],[43,6,43,9],[43,12,43,15],[44,0,44,3],[44,6,44,9],[44,12,44,15],[39,2,39,3],[39,8,39,9],[39,14,39,15],[42,0,42,3],[42,6,42,9],[42,12,42,15],[47,2,47,3],[47,8,47,9],[47,14,47,15],[52,0,52,2],[52,6,52,8],[52,12,52,14],[45,0,45,3],[45,6,45,9],[45,12,45,15],[46,0,46,3],[46,6,46,9],[46,12,46,15],[57,0,57,3],[57,6,57,9],[57,12,57,15],[58,2,58,3],[58,8,58,9],[58,14,58,15],[55,0,55,3],[55,6,55,9],[55,12,55,15],[56,0,56,3],[56,6,56,9],[56,12,56,15],[63,0,63,3],[63,6,63,9],[63,12,63,15],[64,2,64,3],[64,8,64,9],[64,14,64,15],[61,0,61,3],[61,6,61,9],[61,12,61,15],[62,0,62,3],[62,6,62,9],[62,12,62,15],[70,0,70,3],[70,6,70,9],[70,12,70,15],[71,0,71,3],[71,6,71,9],[71,12,71,15],[68,0,68,3],[68,6,68,9],[68,12,68,15],[69,0,69,3],[69,6,69,9],[69,12,69,15],[74,0,74,3],[74,6,74,9],[74,12,74,15],[75,2,75,3],[75,8,75,9],[75,14,75,15],[72,0,72,3],[72,6,72,9],[72,12,72,15],[73,0,73,3],[73,6,73,9],[73,12,73,15]]}
["No de dossier : ",null,null,null,null,null,"No de dossier : ",null,{"$f":"C1","v":0},null,null,null,"No de dossier : ",null,{"$f":"C1","v":0}]
["Organisme qui recevra la subvention : ",null,null,null,null,null,"Organisme qui recevra la subvention : ",null,{"$f":"C2","v":0},null,null,null,"Organisme qui recevra la subvention : ",null,{"$f":"C2","v":0}]
["Frais directs de recherche (A, B, C, D) ",null,null,"Année",1,null,"Frais directs de recherche (A, B, C, D) ",null,null,"Année",2,null,"Frais directs de recherche (A, B, C, D) ",null,null,"Année",3]
["A) Ressources humaines",null,null,null,null,null,"A) Ressources humaines",null,null,null,null,null,"A) Ressources humaines"]
["Salaires",null,null,null,null,null,"Salaires",null,null,null,null,null,"Salaires"]
["Nom","Tâches","Nb jours / année ","Traitement par jour (incluant les avantages sociaux)","Coûts",null,"Nom","Tâches","Nb jours / année ","Traitement par jour (incluant les avantages sociaux)","Coûts",null,"Nom","Tâches","Nb jours / année ","Traitement par jour (incluant les avantages sociaux)","Coûts"]
[null,null,null,null,{"$f":"D7*C7","v":0},null,null,null,null,null,{"$f":"J7*I7","v":0},null,null,null,null,null,{"$f":"P7*O7","v":0}]
[null,null,null,null,{"$f":"D8*C8","v":0},null,null,null,null,null,{"$f":"J8*I8","v":0},null,null,null,null,null,{"$f":"P8*O8","v":0}]
[null,null,null,null,0,null,null,null,null,null,0,null,null,null,null,null,0]
[null,null,null,null,{"$f":"D10*C10","v":0},null,null,null,null,null,{"$f":"J10*I10","v":0},null,null,null,null,null,{"$f":"P10*O10","v":0}]
[null,null,null,null,{"$f":"D11*C11","v":0},null,null,null,null,null,{"$f":"J11*I11","v":0},null,null,null,null,null,{"$f":"P11*O11","v":0}]
[null,null,null,null,{"$f":"D12*C12","v":0},null,null,null,null,null,{"$f":"J12*I12","v":0},null,null,null,null,null,{"$f":"P12*O12","v":0}]
[null,null,null,null,{"$f":"D13*C13","v":0},null,null,null,null,null,{"$f":"J13*I13","v":0},null,null,null,null,null,{"$f":"P13*O13","v":0}]
["Allocations (admissibles pour les étudiants uniquement)",null,null,null,null,null,"Allocations (admissibles pour les étudiants uniquement)",null,null,null,null,null,"Allocations (admissibles pour les étudiants uniquement)"]
["Nom","Tâches","Nb jours / année ",null,"Allocation ",null,"Nom","Tâches","Nb jours / année ",null,"Allocation ",null,"Nom","Tâches","Nb jours / année ",null,"Allocation "]
[]
[]
[]
[]
[]
[]
[]
[]
[null,null,"Sous-total A :",null,{"$f":"SUM(E7:E13,E16:E23)","v":0},null,null,null,"Sous-total A :",null,{"$f":"SUM(K7:K13,K16:K23)","v":0},null,null,null,"Sous-total A :",null,{"$f":"SUM(Q7:Q13,Q16:Q23)","v":0}]
[]
["B) Achat ou location d’équipement",null,null,null,"Coûts",null,"B) Achat ou location d’équipement",null,null,null,"Coûts",null,"B) Achat ou location d’équipement",null,null,null,"Coûts"]
["Préciser et justifier :",null,null,null,null,null,"Préciser et justifier :",null,null,null,null,null,"Préciser et justifier :"]
[]
[]
[]
[]
[null,null,"Sous-total B :",null,{"$f":"SUM(E28:E31)","v":0},null,null,null,"Sous-total B :",null,{"$f":"SUM(K28:K31)","v":0},null,null,null,"Sous-total B :",null,{"$f":"SUM(Q28:Q31)","v":0}]
[]
["C) Matériel, produits consommables et fournitures",null,null,null,"Coûts",null,"C) Matériel, produits consommables et fournitures",null,null,null,"Coûts",null,"C) Matériel, produits consommables et fournitures",null,null,null,"Coûts"]
["Préciser et justifier :",null,null,null,null,null,"Préciser et justifier :",null,null,null,null,null,"Préciser et justifier :"]
[]
[]
[]
[]
[null,null,"Sous-total C :",null,{"$f":"SUM(E36:E39)","v":0},null,null,null,"Sous-total C :",null,{"$f":"SUM(K36:K39)","v":0},null,null,null,"Sous-total C :",null,{"$f":"SUM(Q36:Q39)","v":0}]
[]
["D) Frais de déplacement liés à la réalisation de la recherche",null,null,null,"Coûts",null,"D) Frais de déplacement liés à la réalisation de la recherche",null,null,null,"Coûts",null,"D) Frais de déplacement liés à la réalisation de la recherche",null,null,null,"Coûts"]
["Préciser et justifier :",null,null,null,null,null,"Préciser et justifier :",null,null,null,null,null,"Préciser et justifier :"]
[]
[]
[]
[]
[null,null,"Sous-total D :",null,{"$f":"SUM(E44:E47)","v":0},null,null,null,"Sous-total D :",null,{"$f":"SUM(K44:K47)","v":0},null,null,null,"Sous-total D :",null,{"$f":"SUM(Q44:Q47)","v":0}]
[]
[null,null,null,"Total frais directs de recherche (A + B + C+ D)",{"$f":"E40+E32+E24+E48","v":0},null,null,null,null,"Total frais directs de recherche (A + B + C+ D)",{"$f":"K40+K32+K24+K48","v":0},null,null,null,null,"Total frais directs de recherche (A + B + C+ D)",{"$f":"Q40+Q32+Q24+Q48","v":0}]
[]
["E) Frais indirects de recherche (FIR)",null,null,null,"Coûts",null,"E) Frais indirects de recherche (FIR)",null,null,null,"Coûts",null,"E) Frais indirects de recherche (FIR)",null,null,null,"Coûts"]
["Frais indirects de recherche demandés par votre organisme (%) :",null,null,0.27,{"$f":"D53*E50","v":0},null,"Frais indirects de recherche demandés par votre organisme (%) :",null,null,null,{"$f":"J53*K50","v":0},null,"Frais indirects de recherche demandés par votre organisme (%) :",null,null,null,{"$f":"P53*Q50","v":0}]
[]
["F) Compensation pour les participants à la recherche, le cas échéant",null,null,null,"Coûts",null,"F) Compensation pour les participants à la recherche, le cas échéant",null,null,null,"Coûts",null,"F) Compensation pour les participants à la recherche, le cas échéant",null,null,null,"Coûts"]
["Préciser et justifier le montant prévu par participant : ",null,null,null,null,null,"Préciser et justifier le montant prévu par participant : ",null,null,null,null,null,"Préciser et justifier le montant prévu par participant : "]
[]
[]
[null,null,"Sous-total F:",null,{"$f":"SUM(E57:E58)","v":0},null,null,null,"Sous-total F:",null,{"$f":"SUM(K57:K58)","v":0},null,null,null,"Sous-total F:",null,{"$f":"SUM(Q57:Q58)","v":0}]
[]
["G) Honoraires professionnels et autres contrats",null,null,null,"Coûts",null,"G) Honoraires professionnels et autres contrats",null,null,null,"Coûts",null,"G) Honoraires professionnels et autres contrats",null,null,null,"Coûts"]
["Préciser et justifier : ",null,null,null,null,null,"Préciser et justifier : ",null,null,null,null,null,"Préciser et justifier : "]
[]
[]
[null,null,"Sous-total G:",null,{"$f":"SUM(E63:E64)","v":0},null,null,null,"Sous-total G:",null,{"$f":"SUM(K63:K64)","v":0},null,null,null,"Sous-total G:",null,{"$f":"SUM(Q63:Q64)","v":0}]
[]
["H) Dépenses de diffusion scientifique",null,null,null,"Coûts",null,"H) Dépenses de diffusion scientifique",null,null,null,"Coûts",null,"H) Dépenses de diffusion scientifique",null,null,null,"Coûts"]
[]
["Présentations à des congrès ou colloques⁽¹⁾. Préciser : ",null,null,null,null,null,"Présentations à des congrès ou colloques⁽¹⁾. Préciser : ",null,null,null,null,null,"Présentations à des congrès ou colloques⁽¹⁾. Préciser : "]
[null,null,null,null,0,null,null,null,null,null,0,null,null,null,null,null,0]
["Rencontres avec les milieux et les groupes concernés. Préciser :",null,null,null,null,null,"Rencontres avec les milieux et les groupes concernés. Préciser :",null,null,null,null,null,"Rencontres avec les milieux et les groupes concernés. Préciser :"]
[]
["Frais de traduction ou de publication autres que les rapports publiés par l’IRSST. Préciser :",null,null,null,null,null,"Frais de traduction ou de publication autres que les rapports publiés par l’IRSST. Préciser :",null,null,null,null,null,"Frais de traduction ou de publication autres que les rapports publiés par l’IRSST. Préciser :"]
[]
[]
[null,null,"Sous-total H:",null,{"$f":"SUM(E70:E75)","v":0},null,null,null,"Sous-total H:",null,{"$f":"SUM(K70:K75)","v":0},null,null,null,"Sous-total H:",null,{"$f":"SUM(Q70:Q75)","v":0}]
[]
["Total pour l’année (Total des frais directs de recherche + E + F + G + H):",null,null,null,{"$f":"E76+E65+E59+E53+E50","v":0},null,"Total pour l’année (Total des frais directs de recherche + E + F + G + H):",null,null,null,{"$f":"K76+K65+K59+K53+K50","v":0},null,"Total pour l’année (Total des frais directs de recherche + E + F + G + H):",null,null,null,{"$f":"Q76+Q65+Q59+Q53+Q50","v":0}]
[]
["(1) Les frais de participation à des congrès ou colloques ne sont pas admissibles pour l’année 1 du projet de recherche.",null,null,null,null,null,"(1) Les frais de participation à des congrès ou colloques ne sont pas admissibles pour l’année 1 du projet de recherche.",null,null,null,null,null,"(1) Les frais de participation à des congrès ou colloques ne sont pas admissibles pour l’année 1 du projet de recherche."]

{"sheet":"Budget - organisme 5","index":5,"n_rows":80,"n_cols":17,"rows_kept":80,"cut":false,"hidden":false,"merged":[[1,0,1,1],[1,2,1,4],[1,6,1,7],[1,8,1,10],[1,12,1,13],[1,14,1,16],[0,0,0,1],[0,2,0,4],[0,6,0,7],[0,8,0,10],[0,12,0,13],[0,14,0,16],[4,0,4,4],[4,6,4,10],[4,12,4,16],[14,2,14,3],[14,8,14,9],[14,14,14,15],[2,0,2,2],[2,6,2,8],[2,12,2,14],[3,0,3,4],[3,6,3,10],[3,12,3,16],[17,2,17,3],[17,8,17,9],[17,14,17,15],[18,2,18,3],[18,8,18,9],[18,14,18,15],[15,2,15,3],[15,8,15,9],[15,14,15,15],[16,2,16,3],[16,8,16,9],[16,14,16,15],[21,2,21,3],[21,8,21,9],[21,14,21,15],[22,2,22,3],[22,8,22,9],[22,14,22,15],[19,2,19,3],[19,8,19,9],[19,14,19,15],[20,2,20,3],[20,8,20,9],[20,14,20,15],[27,0,27,3],[27,6,27,9],[27,12,27,15],[28,0,28,3],[28,6,28,9],[28,12,28,15],[23,2,23,3],[23,8,23,9],[23,14,23,15],[26,0,26,3],[26,6,26,9],[26,12,26,15],[25,0,25,1],[25,6,25,7],[25,12,25,13],[31,2,31,3],[31,8,31,9],[31,14,31,15],[34,0,34,3],[34,6,34,9],[34,12,34,15],[29,0,29,3],[29,6,29,9],[29,12,29,15],[30,0,30,3],[30,6,30,9],[30,12,30,15],[37,0,37,3],[37,6,37,9],[37,12,37,15],[38,0,38,3],[38,6,38,9],[38,12,38,15],[35,0,35,3],[35,6,35,9],[35,12,35,15],[36,0,36,3],[36,6,36,9],[36,12,36,15],[43,0,43,3],[43,6,43,9],[43,12,43,15],[44,0,44,3],[44,6,44,9],[44,12,44,15],[39,2,39,3],[39,8,39,9],[39,14,39,15],[42,0,42,3],[42,6,42,9],[42,12,42,15],[47,2,47,3],[47,8,47,9],[47,14,47,15],[52,0,52,2],[52,6,52,8],[52,12,52,14],[45,0,45,3],[45,6,45,9],[45,12,45,15],[46,0,46,3],[46,6,46,9],[46,12,46,15],[57,0,57,3],[57,6,57,9],[57,12,57,15],[58,2,58,3],[58,8,58,9],[58,14,58,15],[55,0,55,3],[55,6,55,9],[55,12,55,15],[56,0,56,3],[56,6,56,9],[56,12,56,15],[63,0,63,3],[63,6,63,9],[63,12,63,15],[64,2,64,3],[64,8,64,9],[64,14,64,15],[61,0,61,3],[61,6,61,9],[61,12,61,15],[62,0,62,3],[62,6,62,9],[62,12,62,15],[70,0,70,3],[70,6,70,9],[70,12,70,15],[71,0,71,3],[71,6,71,9],[71,12,71,15],[68,0,68,3],[68,6,68,9],[68,12,68,15],[69,0,69,3],[69,6,69,9],[69,12,69,15],[74,0,74,3],[74,6,74,9],[74,12,74,15],[75,2,75,3],[75,8,75,9],[75,14,75,15],[72,0,72,3],[72,6,72,9],[72,12,72,15],[73,0,73,3],[73,6,73,9],[73,12,73,15]]}
["No de dossier : ",null,null,null,null,null,"No de dossier : ",null,{"$f":"C1","v":0},null,null,null,"No de dossier : ",null,{"$f":"C1","v":0}]
["Organisme qui recevra la subvention : ",null,null,null,null,null,"Organisme qui recevra la subvention : ",null,{"$f":"C2","v":0},null,null,null,"Organisme qui recevra la subvention : ",null,{"$f":"C2","v":0}]
["Frais directs de recherche (A, B, C, D) ",null,null,"Année",1,null,"Frais directs de recherche (A, B, C, D) ",null,null,"Année",2,null,"Frais directs de recherche (A, B, C, D) ",null,null,"Année",3]
["A) Ressources humaines",null,null,null,null,null,"A) Ressources humaines",null,null,null,null,null,"A) Ressources humaines"]
["Salaires",null,null,null,null,null,"Salaires",null,null,null,null,null,"Salaires"]
["Nom","Tâches","Nb jours / année ","Traitement par jour (incluant les avantages sociaux)","Coûts",null,"Nom","Tâches","Nb jours / année ","Traitement par jour (incluant les avantages sociaux)","Coûts",null,"Nom","Tâches","Nb jours / année ","Traitement par jour (incluant les avantages sociaux)","Coûts"]
[null,null,null,null,{"$f":"D7*C7","v":0},null,null,null,null,null,{"$f":"J7*I7","v":0},null,null,null,null,null,{"$f":"P7*O7","v":0}]
[null,null,null,null,{"$f":"D8*C8","v":0},null,null,null,null,null,{"$f":"J8*I8","v":0},null,null,null,null,null,{"$f":"P8*O8","v":0}]
[null,null,null,null,0,null,null,null,null,null,0,null,null,null,null,null,0]
[null,null,null,null,{"$f":"D10*C10","v":0},null,null,null,null,null,{"$f":"J10*I10","v":0},null,null,null,null,null,{"$f":"P10*O10","v":0}]
[null,null,null,null,{"$f":"D11*C11","v":0},null,null,null,null,null,{"$f":"J11*I11","v":0},null,null,null,null,null,{"$f":"P11*O11","v":0}]
[null,null,null,null,{"$f":"D12*C12","v":0},null,null,null,null,null,{"$f":"J12*I12","v":0},null,null,null,null,null,{"$f":"P12*O12","v":0}]
[null,null,null,null,{"$f":"D13*C13","v":0},null,null,null,null,null,{"$f":"J13*I13","v":0},null,null,null,null,null,{"$f":"P13*O13","v":0}]
["Allocations (admissibles pour les étudiants uniquement)",null,null,null,null,null,"Allocations (admissibles pour les étudiants uniquement)",null,null,null,null,null,"Allocations (admissibles pour les étudiants uniquement)"]
["Nom","Tâches","Nb jours / année ",null,"Allocation ",null,"Nom","Tâches","Nb jours / année ",null,"Allocation ",null,"Nom","Tâches","Nb jours / année ",null,"Allocation "]
[]
[]
[]
[]
[]
[]
[]
[]
[null,null,"Sous-total A :",null,{"$f":"SUM(E7:E13,E16:E23)","v":0},null,null,null,"Sous-total A :",null,{"$f":"SUM(K7:K13,K16:K23)","v":0},null,null,null,"Sous-total A :",null,{"$f":"SUM(Q7:Q13,Q16:Q23)","v":0}]
[]
["B) Achat ou location d’équipement",null,null,null,"Coûts",null,"B) Achat ou location d’équipement",null,null,null,"Coûts",null,"B) Achat ou location d’équipement",null,null,null,"Coûts"]
["Préciser et justifier :",null,null,null,null,null,"Préciser et justifier :",null,null,null,null,null,"Préciser et justifier :"]
[]
[]
[]
[]
[null,null,"Sous-total B :",null,{"$f":"SUM(E28:E31)","v":0},null,null,null,"Sous-total B :",null,{"$f":"SUM(K28:K31)","v":0},null,null,null,"Sous-total B :",null,{"$f":"SUM(Q28:Q31)","v":0}]
[]
["C) Matériel, produits consommables et fournitures",null,null,null,"Coûts",null,"C) Matériel, produits consommables et fournitures",null,null,null,"Coûts",null,"C) Matériel, produits consommables et fournitures",null,null,null,"Coûts"]
["Préciser et justifier :",null,null,null,null,null,"Préciser et justifier :",null,null,null,null,null,"Préciser et justifier :"]
[]
[]
[]
[]
[null,null,"Sous-total C :",null,{"$f":"SUM(E36:E39)","v":0},null,null,null,"Sous-total C :",null,{"$f":"SUM(K36:K39)","v":0},null,null,null,"Sous-total C :",null,{"$f":"SUM(Q36:Q39)","v":0}]
[]
["D) Frais de déplacement liés à la réalisation de la recherche",null,null,null,"Coûts",null,"D) Frais de déplacement liés à la réalisation de la recherche",null,null,null,"Coûts",null,"D) Frais de déplacement liés à la réalisation de la recherche",null,null,null,"Coûts"]
["Préciser et justifier :",null,null,null,null,null,"Préciser et justifier :",null,null,null,null,null,"Préciser et justifier :"]
[]
[]
[]
[]
[null,null,"Sous-total D :",null,{"$f":"SUM(E44:E47)","v":0},null,null,null,"Sous-total D :",null,{"$f":"SUM(K44:K47)","v":0},null,null,null,"Sous-total D :",null,{"$f":"SUM(Q44:Q47)","v":0}]
[]
[null,null,null,"Total frais directs de recherche (A + B + C+ D)",{"$f":"E40+E32+E24+E48","v":0},null,null,null,null,"Total frais directs de recherche (A + B + C+ D)",{"$f":"K40+K32+K24+K48","v":0},null,null,null,null,"Total frais directs de recherche (A + B + C+ D)",{"$f":"Q40+Q32+Q24+Q48","v":0}]
[]
["E) Frais indirects de recherche (FIR)",null,null,null,"Coûts",null,"E) Frais indirects de recherche (FIR)",null,null,null,"Coûts",null,"E) Frais indirects de recherche (FIR)",null,null,null,"Coûts"]
["Frais indirects de recherche demandés par votre organisme (%) :",null,null,null,{"$f":"D53*E50","v":0},null,"Frais indirects de recherche demandés par votre organisme (%) :",null,null,null,{"$f":"J53*K50","v":0},null,"Frais indirects de recherche demandés par votre organisme (%) :",null,null,null,{"$f":"P53*Q50","v":0}]
[]
["F) Compensation pour les participants à la recherche, le cas échéant",null,null,null,"Coûts",null,"F) Compensation pour les participants à la recherche, le cas échéant",null,null,null,"Coûts",null,"F) Compensation pour les participants à la recherche, le cas échéant",null,null,null,"Coûts"]
["Préciser et justifier le montant prévu par participant : ",null,null,null,null,null,"Préciser et justifier le montant prévu par participant : ",null,null,null,null,null,"Préciser et justifier le montant prévu par participant : "]
[]
[]
[null,null,"Sous-total F:",null,{"$f":"SUM(E57:E58)","v":0},null,null,null,"Sous-total F:",null,{"$f":"SUM(K57:K58)","v":0},null,null,null,"Sous-total F:",null,{"$f":"SUM(Q57:Q58)","v":0}]
[]
["G) Honoraires professionnels et autres contrats",null,null,null,"Coûts",null,"G) Honoraires professionnels et autres contrats",null,null,null,"Coûts",null,"G) Honoraires professionnels et autres contrats",null,null,null,"Coûts"]
["Préciser et justifier : ",null,null,null,null,null,"Préciser et justifier : ",null,null,null,null,null,"Préciser et justifier : "]
[]
[]
[null,null,"Sous-total G:",null,{"$f":"SUM(E63:E64)","v":0},null,null,null,"Sous-total G:",null,{"$f":"SUM(K63:K64)","v":0},null,null,null,"Sous-total G:",null,{"$f":"SUM(Q63:Q64)","v":0}]
[]
["H) Dépenses de diffusion scientifique",null,null,null,"Coûts",null,"H) Dépenses de diffusion scientifique",null,null,null,"Coûts",null,"H) Dépenses de diffusion scientifique",null,null,null,"Coûts"]
[]
["Présentations à des congrès ou colloques⁽¹⁾. Préciser : ",null,null,null,null,null,"Présentations à des congrès ou colloques⁽¹⁾. Préciser : ",null,null,null,null,null,"Présentations à des congrès ou colloques⁽¹⁾. Préciser : "]
[null,null,null,null,0,null,null,null,null,null,0,null,null,null,null,null,0]
["Rencontres avec les milieux et les groupes concernés. Préciser :",null,null,null,null,null,"Rencontres avec les milieux et les groupes concernés. Préciser :",null,null,null,null,null,"Rencontres avec les milieux et les groupes concernés. Préciser :"]
[]
["Frais de traduction ou de publication autres que les rapports publiés par l’IRSST. Préciser :",null,null,null,null,null,"Frais de traduction ou de publication autres que les rapports publiés par l’IRSST. Préciser :",null,null,null,null,null,"Frais de traduction ou de publication autres que les rapports publiés par l’IRSST. Préciser :"]
[]
[]
[null,null,"Sous-total H:",null,{"$f":"SUM(E70:E75)","v":0},null,null,null,"Sous-total H:",null,{"$f":"SUM(K70:K75)","v":0},null,null,null,"Sous-total H:",null,{"$f":"SUM(Q70:Q75)","v":0}]
[]
["Total pour l’année (Total des frais directs de recherche + E + F + G + H):",null,null,null,{"$f":"E76+E65+E59+E53+E50","v":0},null,"Total pour l’année (Total des frais directs de recherche + E + F + G + H):",null,null,null,{"$f":"K76+K65+K59+K53+K50","v":0},null,"Total pour l’année (Total des frais directs de recherche + E + F + G + H):",null,null,null,{"$f":"Q76+Q65+Q59+Q53+Q50","v":0}]
[]
["(1) Les frais de participation à des congrès ou colloques ne sont pas admissibles pour l’année 1 du projet de recherche.",null,null,null,null,null,"(1) Les frais de participation à des congrès ou colloques ne sont pas admissibles pour l’année 1 du projet de recherche.",null,null,null,null,null,"(1) Les frais de participation à des congrès ou colloques ne sont pas admissibles pour l’année 1 du projet de recherche."]

{"sheet":"Budget - IRSST","index":6,"n_rows":30,"n_cols":17,"rows_kept":30,"cut":false,"hidden":false,"merged":[[0,14,0,16],[2,0,2,4],[2,6,2,10],[2,12,2,16],[1,0,1,3],[1,12,1,15],[0,0,0,1],[0,2,0,4],[0,6,0,7],[0,8,0,10],[0,12,0,13],[24,0,24,3],[24,6,24,9],[24,12,24,15],[23,2,23,3],[23,8,23,9],[23,14,23,15],[20,1,20,3],[21,0,21,4],[11,2,11,3],[11,8,11,9],[11,14,11,15],[12,6,12,9],[12,12,12,15],[13,0,13,3],[13,12,13,15],[14,12,14,16],[15,12,15,15],[16,12,16,16],[18,13,18,15],[17,1,17,3],[17,7,17,9],[17,13,17,15],[15,0,15,3],[14,0,14,4],[16,0,16,4],[18,1,18,3],[19,1,19,3],[27,12,27,15],[22,0,22,3],[26,0,26,4],[27,0,27,3],[1,6,1,9],[13,6,13,9],[14,6,14,10],[15,6,15,9],[16,6,16,10],[18,7,18,9],[19,7,19,9],[20,7,20,9],[21,6,21,10],[22,6,22,9],[26,6,26,10],[27,6,27,9],[19,13,19,15],[20,13,20,15],[21,12,21,16],[22,12,22,15],[26,12,26,16]]}
["No de dossier : ",null,null,null,null,null,"No de dossier : ",null,{"$f":"C1","v":0},null,null,null,"No de dossier : ",null,{"$f":"C1","v":0}]
["Année",null,null,null,1,null,"Année",null,null,null,2,null,"Année",null,null,null,3]
["Ressources humaines\nMain-d’œuvre engagée spécifiquement pour le projet (étudiants, soutien technique, etc.)",null,null,null,null,null,"Ressources humaines\nMain-d’œuvre engagée spécifiquement pour le projet (étudiants, soutien technique, etc.)",null,null,null,null,null,"Ressources humaines\nMain-d’œuvre engagée spécifiquement pour le projet (étudiants, soutien technique, etc.)"]
["Nom","Tâches","Nb jours / année ","Traitement par jour ","Coûts",null,"Nom","Tâches","Nb jours / année ","Traitement par jour ","Coûts",null,"Nom","Tâches","Nb jours / année ","Traitement par jour ","Coûts"]
[null,null,null,null,{"$f":"D5*C5","v":0},null,null,null,null,null,{"$f":"J5*I5","v":0},null,null,null,null,null,{"$f":"P5*O5","v":0}]
[null,null,null,null,{"$f":"D6*C6","v":0},null,null,null,null,null,{"$f":"J6*I6","v":0},null,null,null,null,null,{"$f":"P6*O6","v":0}]
[null,null,null,null,0,null,null,null,null,null,0,null,null,null,null,null,0]
[null,null,null,null,0,null,null,null,null,null,0,null,null,null,null,null,0]
[null,null,null,null,{"$f":"D9*C9","v":0},null,null,null,null,null,{"$f":"J9*I9","v":0},null,null,null,null,null,{"$f":"P9*O9","v":0}]
[null,null,null,null,0,null,null,null,null,null,0,null,null,null,null,null,{"$f":"P10*O10","v":0}]
[null,null,null,null,{"$f":"D11*C11","v":0},null,null,null,null,null,{"$f":"J11*I11","v":0},null,null,null,null,null,{"$f":"P11*O11","v":0}]
[null,null,"Sous-total",null,{"$f":"SUM(E5:E11)","v":0},null,null,null,"Sous-total",null,{"$f":"SUM(K5:K11)","v":0},null,null,null,"Sous-total",null,{"$f":"SUM(Q5:Q11)","v":0}]
["Compensation pour les participants à la recherche, le cas échéant",null,null,null,"Coûts",null,"Compensation pour les participants à la recherche, le cas échéant",null,null,null,"Coûts",null,"Compensation pour les participants à la recherche, le cas échéant",null,null,null,"Coûts"]
["Préciser et justifier le montant prévu par participant :",null,null,null,null,null,"Préciser et justifier le montant prévu par participant :",null,null,null,null,null,"Préciser et justifier le montant prévu par participant :"]
["Honoraires professionnels et autres contrats",null,null,null,null,null,"Honoraires professionnels et autres contrats",null,null,null,null,null,"Honoraires professionnels et autres contrats"]
["Préciser et justifier :",null,null,null,null,null,"Préciser et justifier :",null,null,null,null,null,"Préciser et justifier :"]
["Dépenses autres que celles prises à même le budget courant du service",null,null,null,null,null,"Dépenses autres que celles prises à même le budget courant du service",null,null,null,null,null,"Dépenses autres que celles prises à même le budget courant du service"]
["Analyses de laboratoire",null,null,null,null,null,"Analyses de laboratoire",null,null,null,null,null,"Analyses de laboratoire"]
["Frais de déplacement",null,null,null,null,null,"Frais de déplacement",null,null,null,null,null,"Frais de déplacement"]
["Matériel de laboratoire",null,null,null,null,null,"Matériel de laboratoire",null,null,null,null,null,"Matériel de laboratoire"]
["Autres dépenses",null,null,null,null,null,"Autres dépenses",null,null,null,null,null,"Autres dépenses"]
["Dépenses de diffusion scientifique",null,null,null,null,null,"Dépenses de diffusion scientifique",null,null,null,null,null,"Dépenses de diffusion scientifique"]
["Présentations à des congrès ou colloques⁽¹⁾. Préciser :",null,null,null,null,null,"Présentations à des congrès ou colloques⁽¹⁾. Préciser :",null,null,null,null,null,"Présentations à des congrès ou colloques⁽¹⁾. Préciser :"]
[null,null,"Sous-total",null,{"$f":"E14+E16+E18+E19+E20+E21+E23","v":0},null,null,null,"Sous-total",null,{"$f":"K14+K16+K18+K19+K20+K21+K23","v":0},null,null,null,"Sous-total",null,{"$f":"Q14+Q16+Q18+Q19+Q20+Q21+Q23","v":0}]
["TOTAL POUR L'ANNÉE",null,null,null,{"$f":"E12+E24","v":0},null,"TOTAL POUR L'ANNÉE",null,null,null,{"$f":"K12+K24","v":0},null,"TOTAL POUR L'ANNÉE",null,null,null,{"$f":"Q12+Q24","v":0}]
[]
["Complément au budget pour les chercheurs de l’IRSST\n(ne pas inclure dans le budget demandé)",null,null,null,null,null,"Complément au budget pour les chercheurs de l’IRSST\n(ne pas inclure dans le budget demandé)",null,null,null,null,null,"Complément au budget pour les chercheurs de l’IRSST\n(ne pas inclure dans le budget demandé)"]
["Dépenses associées au projet, provenant du budget courant du service \n(p. ex. : immobilisations, frais de traduction, frais de déplacement). Préciser les items :",null,null,null,null,null,"Dépenses associées au projet, provenant du budget courant du service \n(p. ex. : immobilisations, frais de traduction, frais de déplacement). Préciser les items :",null,null,null,null,null,"Dépenses associées au projet, provenant du budget courant du service \n(p. ex. : immobilisations, frais de traduction, frais de déplacement). Préciser les items :"]
[]
["(1) Les frais de participation à des congrès ou colloques ne sont pas admissibles pour l’année 1 du projet de recherche.",null,null,null,null,null,"(1) Les frais de participation à des congrès ou colloques ne sont pas admissibles pour l’année 1 du projet de recherche.",null,null,null,null,null,"(1) Les frais de participation à des congrès ou colloques ne sont pas admissibles pour l’année 1 du projet de recherche."]

{"sheet":"Budget global","index":7,"n_rows":27,"n_cols":8,"rows_kept":27,"cut":false,"hidden":false,"merged":[[23,0,23,1],[25,0,25,1],[16,0,16,7],[17,0,17,1],[18,0,18,1],[19,0,19,1],[20,0,20,7],[21,0,21,1],[22,0,22,1],[0,3,0,4],[15,0,15,7],[0,0,0,1],[3,0,3,7],[4,0,4,1],[10,0,10,1],[11,0,11,7],[5,0,5,1],[6,0,6,1],[8,0,8,1],[7,0,7,1],[13,0,13,7],[14,0,14,7]]}
["BUDGET GLOBAL",null,"No de dossier : ",{"$f":"'Budget - organisme 1'!C1","v":0},{"$f":"#REF!","v":{"$error":"#REF!"}}]
[]
[null,null,"Année 1","Année 2","Année 3","TOTAL","Frais directs","FIR"]
["· Budget demandé pour les chercheurs externes :"]
[{"$f":"'Budget - organisme 1'!C$2","v":0},null,{"$f":"'Budget - organisme 1'!E$78","v":0},{"$f":"'Budget - organisme 1'!K$78","v":0},{"$f":"'Budget - organisme 1'!Q$78","v":0},{"$f":"SUM(C5:E5)","v":0},{"$f":"F5-H5","v":0},{"$f":"'Budget - organisme 1'!E$53+'Budget - organisme 1'!K$53+'Budget - organisme 1'!Q$53","v":0}]
[{"$f":"'Budget - organisme 2'!C$2","v":0},null,{"$f":"'Budget - organisme 2'!E$78","v":0},{"$f":"'Budget - organisme 2'!K$78","v":0},{"$f":"'Budget - organisme 2'!Q$78","v":0},{"$f":"SUM(C6:E6)","v":0},{"$f":"F6-H6","v":0},{"$f":"'Budget - organisme 2'!E$53+'Budget - organisme 2'!K$53+'Budget - organisme 2'!Q$53","v":0}]
[{"$f":"'Budget - organisme 3'!C$2","v":0},null,{"$f":"'Budget - organisme 3'!E$78","v":0},{"$f":"'Budget - organisme 3'!K$78","v":0},{"$f":"'Budget - organisme 3'!Q$78","v":0},{"$f":"SUM(C7:E7)","v":0},{"$f":"F7-H7","v":0},{"$f":"'Budget - organisme 3'!E$53+'Budget - organisme 3'!K$53+'Budget - organisme 3'!Q$53","v":0}]
[{"$f":"'Budget - organisme 4'!C$2","v":0},null,{"$f":"'Budget - organisme 4'!E$78","v":0},{"$f":"'Budget - organisme 4'!K$78","v":0},{"$f":"'Budget - organisme 4'!Q$78","v":0},{"$f":"SUM(C8:E8)","v":0},{"$f":"F8-H8","v":0},{"$f":"'Budget - organisme 4'!E$53+'Budget - organisme 4'!K$53+'Budget - organisme 4'!Q$53","v":0}]
[{"$f":"'Budget - organisme 5'!C$2","v":0},null,{"$f":"'Budget - organisme 5'!E$78","v":0},{"$f":"'Budget - organisme 5'!K$78","v":0},{"$f":"'Budget - organisme 5'!Q$78","v":0},{"$f":"SUM(C9:E9)","v":0},{"$f":"F9-H9","v":0},{"$f":"'Budget - organisme 5'!E$53+'Budget - organisme 5'!K$53+'Budget - organisme 5'!Q$53","v":0}]
[null,"Sous-total :",{"$f":"SUM(C5:C9)","v":0},0,0,0,0,0]
[]
["· Budget interne IRSST :"]
[null,"Sous-total :",{"$f":"'Budget - IRSST'!E25","v":0},{"$f":"'Budget - IRSST'!K25","v":0},{"$f":"'Budget - IRSST'!Q25","v":0},{"$f":"SUM(C13:E13)","v":0}]
[]
["· Contribution  des partenaires :"]
["Inscrire le nom de chaque partenaire et le montant de leur contribution "]
["a)      Partenaires financiers"]
[null,null,null,null,null,{"$f":"SUM(C18:E18)","v":0}]
[null,null,null,null,null,{"$f":"SUM(C19:E19)","v":0}]
[null,null,null,null,null,{"$f":"SUM(C20:E20)","v":0}]
["b)      Autres partenaires (ressources humaines ou matérielles)"]
[null,null,null,null,null,{"$f":"SUM(C22:E22)","v":0}]
[null,null,null,null,null,{"$f":"SUM(C23:E23)","v":0}]
[null,null,null,null,null,{"$f":"SUM(C24:E24)","v":0}]
[null,"Sous-total :",{"$f":"SUM(C18:C20)+SUM(C22:C24)","v":0},{"$f":"SUM(D18:D20)+SUM(D22:D24)","v":0},0,0]
[]
[null,"TOTAL :",{"$f":"C25+C13+C10","v":0},{"$f":"D25+D13+D10","v":0},0,0,0,0]